bitfinex/quotes_BTCUSD_20250619
["timestamp","ask_amount","ask_price","bid_price","bid_amount"]
[1750327918618,0.35907563,105070.0,105060.0,0.98183764]
[1750327921707,0.35907563,105070.0,105060.0,0.99813764]
[1750327923253,0.35907563,105070.0,105060.0,0.98183764]
[1750327924625,0.35907563,105070.0,105060.0,0.99773764]
[1750327925902,4e-05,105070.0,105060.0,0.99773764]
[1750327926353,4e-05,105070.0,105060.0,1.35677327]
[1750327927061,4e-05,105070.0,105060.0,0.99773764]
[1750327927317,4e-05,105070.0,105060.0,1.35677327]
[1750327927546,4e-05,105070.0,105060.0,1.35577327]
[1750327927768,4e-05,105070.0,105060.0,1.35877327]
[1750327927996,4e-05,105070.0,105060.0,1.35677327]
[1750327928224,4e-05,105070.0,105060.0,1.36277327]
[1750327929163,4e-05,105070.0,105060.0,1.79796232]
[1750327929670,4e-05,105080.0,105070.0,1.4235727]
[1750327929887,4e-05,105080.0,105070.0,1.84321163]
[1750327930108,4e-05,105080.0,105070.0,1.57936777]
[1750327930333,4e-05,105080.0,105070.0,1.484176]
[1750327930567,4e-05,105080.0,105070.0,1.84321163]
[1750327930801,4e-05,105080.0,105070.0,1.57936777]
[1750327931473,4e-05,105080.0,105070.0,1.84321163]
[1750327932370,4e-05,105080.0,105070.0,1.91908794]
[1750327932598,4e-05,105080.0,105070.0,1.84321163]
[1750327932818,4e-05,105080.0,105070.0,1.68885163]
[1750327933039,4e-05,105080.0,105070.0,1.88289163]
[1750327933250,4e-05,105080.0,105070.0,1.95873282]
[1750327933467,4e-05,105080.0,105070.0,1.98748021]
[1750327934132,4e-05,105080.0,105070.0,2.47914021]
[1750327935238,4e-05,105080.0,105070.0,2.12010458]
[1750327935465,4e-05,105080.0,105070.0,2.47914021]
[1750327936370,4e-05,105080.0,105070.0,2.12010458]
[1750327936583,4e-05,105080.0,105070.0,2.47914021]
[1750327937003,4e-05,105080.0,105070.0,2.50772321]
[1750327945885,0.38987563,105110.0,105100.0,0.23337894]
[1750327946124,0.38987563,105110.0,105100.0,0.93399787]
[1750327955891,0.03084,105110.0,105100.0,0.93399787]
[1750327956119,4e-05,105110.0,105100.0,0.93399787]
[1750327956337,4e-05,105110.0,105100.0,1.3245335]
[1750327956999,4e-05,105110.0,105100.0,0.94939787]
[1750327957464,0.35907563,105110.0,105100.0,0.93399787]
[1750327958833,0.35907563,105110.0,105100.0,0.96629787]
[1750327959469,0.0154,105130.0,105100.0,1.3253335]
[1750327959681,0.02996726,105130.0,105120.0,0.23333731]
[1750327959886,0.73654067,105130.0,105120.0,0.64245624]
[1750327960524,0.73654067,105130.0,105120.0,0.63981936]
[1750327960739,0.73654067,105130.0,105120.0,0.93123936]
[1750327963800,1.10508751,105130.0,105120.0,0.77699936]
[1750327964023,1.11459881,105130.0,105120.0,0.93123936]
[1750327964464,1.10508751,105130.0,105120.0,0.93123936]
[1750327964909,0.37750504,105130.0,105120.0,0.93123936]
[1750327965126,1.0955763,105130.0,105120.0,0.93123936]
[1750327965310,1.1050876,105130.0,105120.0,0.93123936]
[1750327966148,1.0955763,105130.0,105120.0,0.93123936]
[1750327966388,1.1050876,105130.0,105120.0,0.93123936]
[1750327966608,1.11459908,105130.0,105120.0,0.73739936]
[1750327966747,1.1050876,105130.0,105120.0,0.93123936]
[1750327967551,1.11459908,105130.0,105120.0,0.93123936]
[1750327967753,1.1050876,105130.0,105120.0,0.93123936]
[1750327967937,1.11459908,105130.0,105120.0,0.76245851]
[1750327968149,1.13362251,105130.0,105120.0,0.72285851]
[1750327968384,1.14313445,105130.0,105120.0,0.87709851]
[1750327968592,1.32386435,105130.0,105120.0,0.62070416]
[1750327968807,1.32386435,105130.0,105120.0,0.77494416]
[1750327969035,1.30484092,105130.0,105120.0,0.62070434]
[1750327969238,1.30484092,105130.0,105120.0,0.784457]
[1750327970101,1.30484092,105130.0,105120.0,0.79396957]
[1750327970327,1.30484092,105130.0,105120.0,0.63972957]
[1750327970531,1.30484092,105130.0,105120.0,0.79396957]
[1750327971344,1.30484092,105130.0,105120.0,0.63972957]
[1750327971560,1.30484092,105130.0,105120.0,0.79396957]
[1750327972162,1.30484092,105130.0,105120.0,0.63972957]
[1750327972369,1.30484092,105130.0,105120.0,0.79396957]
[1750327972606,1.30484092,105130.0,105120.0,0.50254957]
[1750327975391,1.30484092,105130.0,105120.0,0.493037]
[1750327975655,1.29532898,105130.0,105120.0,0.2742]
[1750327976081,1.28581695,105130.0,105120.0,0.2742]
[1750327976556,1.28581695,105130.0,105120.0,0.12]
[1750327981848,1.28581695,105130.0,105120.0,0.12951293]
[1750327983528,1.28581695,105130.0,105120.0,0.13902577]
[1750327984771,1.28581695,105130.0,105120.0,0.12951293]
[1750327987054,1.28581695,105130.0,105120.0,0.31977168]
[1750327989282,1.28581695,105130.0,105120.0,0.32928452]
[1750327989845,0.56774569,105130.0,105120.0,0.33879727]
[1750327990059,1.28581695,105130.0,105120.0,0.33879727]
[1750327991012,1.28581695,105130.0,105120.0,0.32928452]
[1750327991563,1.28581695,105130.0,105120.0,0.33879727]
[1750327993880,1.28581695,105130.0,105120.0,0.32928452]
[1750327996988,1.28581695,105130.0,105120.0,0.12]
[1750328000851,1.28581695,105130.0,105120.0,0.12951293]
[1750328001534,1.28581695,105130.0,105120.0,0.33879727]
[1750328004087,1.28581695,105130.0,105120.0,0.32928452]
[1750328005255,1.30866451,105130.0,105120.0,0.32928452]
[1750328005478,1.30870451,105130.0,105120.0,0.32928452]
[1750328007735,1.30870451,105130.0,105120.0,0.12951293]
[1750328008365,1.91720999,105130.0,105120.0,0.12]
[1750328008574,0.38121311,105110.0,105100.0,0.22835088]
[1750328008792,0.71806194,105110.0,105100.0,0.60782981]
[1750328009015,1.05807126,105110.0,105100.0,0.62312981]
[1750328009234,0.69903563,105110.0,105100.0,0.63952981]
[1750328009875,0.69903563,105110.0,105100.0,0.48532981]
[1750328010086,0.69903563,105110.0,105100.0,0.67912981]
[1750328011128,0.69903563,105110.0,105100.0,0.48532981]
[1750328011342,1.05807126,105110.0,105100.0,0.67908981]
[1750328011673,1.06758428,105110.0,105100.0,0.67908981]
[1750328012676,1.07709739,105110.0,105100.0,0.67908981]
[1750328013130,1.06758428,105110.0,105100.0,0.67908981]
[1750328013784,1.07709757,105110.0,105100.0,0.67908981]
[1750328013998,1.07709748,105110.0,105100.0,0.97050981]
[1750328014455,1.08661077,105110.0,105100.0,0.97050981]
[1750328016211,1.07709748,105110.0,105100.0,0.97050981]
[1750328016647,1.08661096,105110.0,105100.0,0.95410981]
[1750328016878,1.07709748,105110.0,105100.0,0.95410981]
[1750328017790,1.08661087,105110.0,105100.0,0.95410981]
[1750328018720,0.35902622,105110.0,105100.0,0.95410981]
[1750328018945,1.07709748,105110.0,105100.0,0.95410981]
[1750328020673,1.07709748,105110.0,105100.0,0.74504981]
[1750328020879,1.07709748,105110.0,105100.0,0.93876981]
[1750328022065,1.07709748,105110.0,105100.0,0.95476981]
[1750328025823,0.34951302,105110.0,105100.0,0.95476981]
[1750328026059,0.69903563,105110.0,105100.0,0.95476981]
[1750328026272,0.69903563,105110.0,105100.0,0.97056981]
[1750328037489,0.70854874,105110.0,105100.0,0.97056981]
[1750328037675,0.70854874,105110.0,105100.0,0.93876981]
[1750328037819,0.71806213,105110.0,105100.0,0.93876981]
[1750328038028,0.71806203,105110.0,105100.0,0.93876981]
[1750328039852,0.72757551,105110.0,105100.0,0.93876981]
[1750328040079,0.73336203,105110.0,105100.0,0.93876981]
[1750328040290,1.09239766,105110.0,105100.0,0.93876981]
[1750328040495,1.07709766,105110.0,105100.0,0.93876981]
[1750328040705,1.06758437,105110.0,105100.0,0.93876981]
[1750328040932,0.70854874,105110.0,105100.0,0.93876981]
[1750328041879,0.71806203,105110.0,105100.0,0.93876981]
[1750328043008,1.07709766,105110.0,105100.0,0.93876981]
[1750328043855,1.06758437,105110.0,105100.0,0.93876981]
[1750328044961,0.70854874,105110.0,105100.0,0.93876981]
[1750328047892,0.70854874,105110.0,105100.0,0.74504981]
[1750328048111,0.70854874,105110.0,105100.0,0.93868981]
[1750328048397,0.71806194,105110.0,105100.0,0.93868981]
[1750328049045,0.70854874,105110.0,105100.0,0.93868981]
[1750328049253,0.69903563,105110.0,105100.0,0.93868981]
[1750328049938,0.69903563,105110.0,105100.0,0.98643066]
[1750328053511,0.69903563,105110.0,105100.0,0.96983066]
[1750328053940,0.69903563,105110.0,105100.0,0.97553342]
[1750328057136,0.70854874,105110.0,105100.0,0.97553342]
[1750328057525,0.69903563,105110.0,105100.0,0.97553342]
[1750328057993,0.70854865,105110.0,105100.0,0.95893342]
[1750328058192,0.34,105110.0,105100.0,0.95893342]
[1750328058404,0.69903563,105110.0,105100.0,0.99053342]
[1750328059304,0.34,105110.0,105100.0,0.95893342]
[1750328059546,0.69903563,105110.0,105100.0,0.98913342]
[1750328061085,0.69903563,105110.0,105100.0,0.99013342]
[1750328062382,0.69903563,105110.0,105100.0,0.99213342]
[1750328062825,0.69903563,105110.0,105100.0,0.78349342]
[1750328063052,0.69903563,105110.0,105100.0,0.97713342]
[1750328063508,0.34,105110.0,105100.0,0.97713342]
[1750328063774,0.69903563,105110.0,105100.0,0.97713342]
[1750328068018,0.69903563,105110.0,105100.0,0.96193342]
[1750328071735,0.34,105110.0,105100.0,0.96193342]
[1750328071957,0.69903563,105110.0,105100.0,0.96193342]
[1750328077378,0.69903563,105110.0,105100.0,0.80781342]
[1750328077589,0.69903563,105110.0,105100.0,0.96189342]
[1750328078392,1.07709794,105110.0,105100.0,0.75375257]
[1750328078601,1.10849794,105110.0,105100.0,0.96185342]
[1750328078770,1.10849785,105110.0,105100.0,0.96185342]
[1750328079178,1.09898446,105110.0,105100.0,0.96185342]
[1750328080601,1.09898437,105110.0,105100.0,0.96185342]
[1750328082314,1.08947126,105110.0,105100.0,0.96185342]
[1750328082530,0.71423563,105110.0,105100.0,0.96185342]
[1750328082735,0.34,105110.0,105100.0,0.97765342]
[1750328082964,0.69903563,105110.0,105100.0,0.99275342]
[1750328091723,0.34,105110.0,105100.0,0.99275342]
[1750328091948,0.35903563,105110.0,105100.0,0.99275342]
[1750328096440,0.35903563,105110.0,105100.0,0.97765342]
[1750328096842,0.72943563,105120.0,105110.0,0.23335813]
[1750328097067,1.08847126,105120.0,105110.0,0.62267706]
[1750328099077,1.07337126,105120.0,105110.0,0.62267706]
[1750328101830,1.07337126,105120.0,105110.0,0.60813621]
[1750328102670,1.07337126,105120.0,105110.0,0.89955621]
[1750328102892,1.09948338,105120.0,105110.0,0.74551621]
[1750328103182,1.11850807,105120.0,105110.0,0.89951621]
[1750328103368,1.11850798,105120.0,105110.0,0.89951621]
[1750328103582,1.10899559,105120.0,105110.0,0.89951621]
[1750328103792,1.11850798,105120.0,105110.0,0.89951621]
[1750328104014,1.10899559,105120.0,105110.0,0.89951621]
[1750328104226,1.10899568,105120.0,105110.0,0.89951621]
[1750328104736,1.09948338,105120.0,105110.0,0.89951621]
[1750328104913,1.10899568,105120.0,105110.0,0.89951621]
[1750328105276,1.10899559,105120.0,105110.0,0.89951621]
[1750328107396,1.09948338,105120.0,105110.0,0.89951621]
[1750328108706,1.10899568,105120.0,105110.0,0.89951621]
[1750328108849,1.09948338,105120.0,105110.0,0.89951621]
[1750328109064,1.10899559,105120.0,105110.0,0.89951621]
[1750328111732,1.08997126,105120.0,105110.0,0.89951621]
[1750328111913,1.07337126,105120.0,105110.0,0.89951621]
[1750328112589,1.07337126,105120.0,105110.0,0.90521897]
[1750328117321,1.05807126,105120.0,105110.0,0.93545982]
[1750328118473,1.05807126,105120.0,105110.0,0.91975982]
[1750328119868,1.07377126,105120.0,105110.0,0.91975982]
[1750328122925,1.08328338,105120.0,105110.0,0.91975982]
[1750328124162,1.07377126,105120.0,105110.0,0.91975982]
[1750328124650,1.05807126,105120.0,105110.0,0.91975982]
[1750328125635,1.07317126,105120.0,105110.0,0.91975982]
[1750328127648,1.08268347,105120.0,105110.0,0.91975982]
[1750328128006,1.07317126,105120.0,105110.0,0.91975982]
[1750328128843,1.08268338,105120.0,105110.0,0.91975982]
[1750328129230,1.07317126,105120.0,105110.0,0.91975982]
[1750328129971,1.08268347,105120.0,105110.0,0.91975982]
[1750328132048,1.09219586,105120.0,105110.0,0.91975982]
[1750328132892,1.10170843,105120.0,105110.0,0.91971982]
[1750328133533,1.09219586,105120.0,105110.0,0.91971982]
[1750328133739,1.10170834,105120.0,105110.0,0.91971982]
[1750328134273,1.11122091,105120.0,105110.0,0.91971982]
[1750328135198,1.10170834,105120.0,105110.0,0.91971982]
[1750328136143,1.09219586,105120.0,105110.0,0.91971982]
[1750328136956,1.10170843,105120.0,105110.0,0.91971982]
[1750328138709,1.11750843,105120.0,105110.0,0.91971982]
[1750328142719,1.12702109,105120.0,105110.0,0.91971982]
[1750328143231,1.11750843,105120.0,105110.0,0.91971982]
[1750328143951,1.12702118,105120.0,105110.0,0.75121897]
[1750328144174,1.12702118,105120.0,105110.0,0.90513897]
[1750328146481,0.39943717,105120.0,105110.0,0.90513897]
[1750328146701,1.09219586,105120.0,105110.0,0.90513897]
[1750328147445,1.08268347,105120.0,105110.0,0.90513897]
[1750328147639,1.07317126,105120.0,105110.0,0.90513897]
[1750328147844,1.09219586,105120.0,105110.0,0.90513897]
[1750328148055,1.09219577,105120.0,105110.0,0.90513897]
[1750328148445,1.07709577,105120.0,105110.0,0.90513897]
[1750328149717,0.36853699,105120.0,105110.0,0.90513897]
[1750328149950,1.07709577,105120.0,105110.0,0.90513897]
[1750328152823,1.06758347,105120.0,105110.0,0.90513897]
[1750328154332,1.07709577,105120.0,105110.0,0.75121897]
[1750328155366,1.06758347,105120.0,105110.0,0.75121897]
[1750328155890,1.05807126,105120.0,105110.0,0.75121897]
[1750328156127,1.06758338,105120.0,105110.0,0.75121897]
[1750328158419,0.34,105120.0,105110.0,0.75121897]
[1750328158611,1.05807126,105120.0,105110.0,0.75121897]
[1750328158826,1.05807126,105120.0,105110.0,0.76575982]
[1750328158827,0.34,105120.0,105110.0,0.76575982]
[1750328159031,1.05807126,105120.0,105110.0,0.78225982]
[1750328159760,1.05807126,105120.0,105110.0,0.79855982]
[1750328160245,1.05807126,105120.0,105110.0,0.78401897]
[1750328161105,0.34,105120.0,105110.0,0.78401897]
[1750328161312,1.05807126,105120.0,105110.0,0.78401897]
[1750328162294,0.07349742,105130.0,105120.0,0.21879646]
[1750328162295,0.00949173,105130.0,105120.0,0.21879646]
[1750328162520,0.36852736,105130.0,105120.0,0.79143624]
[1750328163609,0.00949173,105130.0,105120.0,0.79143624]
[1750328163887,0.36852736,105130.0,105120.0,0.79143624]
[1750328164529,0.36852736,105130.0,105120.0,0.79343624]
[1750328165387,0.36852736,105130.0,105120.0,0.79443624]
[1750328167540,0.00949173,105130.0,105120.0,0.79443624]
[1750328167780,0.36852736,105130.0,105120.0,0.79443624]
[1750328174137,0.00949173,105130.0,105120.0,0.79443624]
[1750328174339,0.36852736,105130.0,105120.0,0.79443624]
[1750328175896,0.36852736,105130.0,105120.0,0.77883624]
[1750328176713,0.36852736,105130.0,105120.0,0.76303624]
[1750328178010,0.36852736,105130.0,105120.0,0.77913624]
[1750328179934,0.36852736,105130.0,105120.0,0.76303624]
[1750328181072,0.75916299,105130.0,105120.0,0.74849539]
[1750328181277,0.7876979,105130.0,105120.0,0.74849539]
[1750328181925,0.78769781,105130.0,105120.0,0.74849539]
[1750328182135,0.78769781,105130.0,105120.0,0.74549539]
[1750328182381,0.77818605,105130.0,105120.0,0.74549539]
[1750328182804,0.06011479,105130.0,105120.0,0.74549539]
[1750328183009,0.77818605,105130.0,105120.0,0.74549539]
[1750328184436,0.7876979,105130.0,105120.0,0.74549539]
[1750328184654,0.78769781,105130.0,105120.0,0.74549539]
[1750328184940,0.77818605,105130.0,105120.0,0.74549539]
[1750328185081,0.77818596,105130.0,105120.0,0.74549539]
[1750328185718,0.77818586,105130.0,105120.0,0.74549539]
[1750328186278,0.78769753,105130.0,105120.0,0.74549539]
[1750328186709,0.78769744,105130.0,105120.0,0.74549539]
[1750328187367,0.75916299,105130.0,105120.0,0.74549539]
[1750328187580,0.40963866,105130.0,105120.0,0.74549539]
[1750328187804,0.40012736,105130.0,105120.0,0.74549539]
[1750328188429,0.41915005,105130.0,105120.0,0.74549539]
[1750328188662,0.7686742,105130.0,105120.0,0.74549539]
[1750328188864,0.40012736,105130.0,105120.0,0.74549539]
[1750328189071,0.36852736,105130.0,105120.0,0.74549539]
[1750328196416,0.38412736,105130.0,105120.0,0.74549539]
[1750328197746,0.75267429,105130.0,105120.0,0.74549539]
[1750328198513,0.77848577,105130.0,105120.0,0.74549539]
[1750328198714,0.76897429,105130.0,105120.0,0.74549539]
[1750328199648,0.75946299,105130.0,105120.0,0.74549539]
[1750328199846,0.7689742,105130.0,105120.0,0.74549539]
[1750328200333,0.77848568,105130.0,105120.0,0.74549539]
[1750328200552,0.77848559,105130.0,105120.0,0.74549539]
[1750328201587,0.7689742,105130.0,105120.0,0.74549539]
[1750328202528,0.77848559,105130.0,105120.0,0.74549539]
[1750328203520,0.7689742,105130.0,105120.0,0.74549539]
[1750328203757,0.7784855,105130.0,105120.0,0.74549539]
[1750328204222,0.78799689,105130.0,105120.0,0.74549539]
[1750328204917,0.79750847,105130.0,105120.0,0.74549539]
[1750328205165,0.78799689,105130.0,105120.0,0.74549539]
[1750328205402,0.79750847,105130.0,105120.0,0.74549539]
[1750328206031,0.79750856,105130.0,105120.0,0.74549539]
[1750328206266,0.79750847,105130.0,105120.0,0.74549539]
[1750328206497,0.80702014,105130.0,105120.0,0.74549539]
[1750328207514,0.80702087,105130.0,105120.0,0.75500787]
[1750328207751,0.80702078,105130.0,105120.0,0.75500787]
[1750328208693,0.80702142,105130.0,105120.0,0.75500787]
[1750328209167,0.80702142,105130.0,105120.0,0.46358787]
[1750328209678,0.80702206,105130.0,105120.0,0.46358787]
[1750328210406,0.79751003,105130.0,105120.0,0.46358787]
[1750328211137,0.78799809,105130.0,105120.0,0.46358787]
[1750328212566,0.79751012,105130.0,105120.0,0.46358787]
[1750328213521,0.78799809,105130.0,105120.0,0.46358787]
[1750328215000,0.78799809,105130.0,105120.0,0.75508787]
[1750328216355,0.79751003,105130.0,105120.0,0.75508787]
[1750328217525,1.32775068,105130.0,105120.0,0.52677893]
[1750328217766,1.30872743,105130.0,105120.0,0.6312715]
[1750328220195,1.29921558,105130.0,105120.0,0.4315]
[1750328220716,1.29921558,105130.0,105120.0,0.44101293]
[1750328220937,1.29921558,105130.0,105120.0,0.14]
[1750328221944,1.29921558,105130.0,105120.0,0.3397715]
[1750328222183,1.29921558,105130.0,105120.0,0.34928416]
[1750328222901,1.29921558,105130.0,105120.0,0.35879673]
[1750328223131,1.12799799,105130.0,105120.0,0.36830912]
[1750328224304,1.13751002,105130.0,105120.0,0.36830912]
[1750328226906,1.32775067,105130.0,105120.0,0.35879673]
[1750328227147,1.31823928,105130.0,105120.0,0.35879673]
[1750328228385,1.31823928,105130.0,105120.0,0.3397715]
[1750328228618,1.30872761,105130.0,105120.0,0.14]
[1750328228850,1.30872761,105130.0,105120.0,0.14951293]
[1750328229081,1.29921567,105130.0,105120.0,0.14951293]
[1750328230068,1.29921567,105130.0,105120.0,0.34928452]
[1750328231515,1.29921567,105130.0,105120.0,0.35879727]
[1750328233804,1.28970364,105130.0,105120.0,0.34928452]
[1750328234658,1.28970364,105130.0,105120.0,0.14]
[1750328235587,1.28970364,105130.0,105120.0,0.14951293]
[1750328236521,1.28970364,105130.0,105120.0,0.14]
[1750328237236,1.28970364,105130.0,105120.0,0.33025875]
[1750328237445,1.28970364,105130.0,105120.0,0.33977159]
[1750328238162,1.28970364,105130.0,105120.0,0.14]
[1750328238797,1.28970364,105130.0,105120.0,0.14951293]
[1750328239229,1.28970364,105130.0,105120.0,0.33977168]
[1750328239656,1.28970364,105130.0,105120.0,0.34928452]
[1750328243221,1.28970364,105130.0,105120.0,0.35879727]
[1750328243431,1.28970364,105130.0,105120.0,0.34928452]
[1750328244367,1.28970364,105130.0,105120.0,0.35879727]
[1750328246574,1.28970364,105130.0,105120.0,0.34928452]
[1750328247195,1.28970364,105130.0,105120.0,0.35879727]
[1750328248915,1.28970364,105130.0,105120.0,0.33977168]
[1750328249540,1.28970364,105130.0,105120.0,0.14]
[1750328251011,1.28970364,105130.0,105120.0,0.14951293]
[1750328251828,1.28970364,105130.0,105120.0,0.14]
[1750328252735,1.28970364,105130.0,105120.0,0.14951293]
[1750328254722,1.28970364,105130.0,105120.0,0.14]
[1750328255119,1.28970364,105130.0,105120.0,0.14951293]
[1750328256691,1.28970364,105130.0,105120.0,0.33977168]
[1750328257158,0.56484441,105130.0,105120.0,0.35879718]
[1750328257378,1.28291567,105130.0,105120.0,0.35879718]
[1750328258716,1.28291567,105130.0,105120.0,0.34928452]
[1750328259450,1.28291567,105130.0,105120.0,0.35879727]
[1750328259977,0.56484441,105130.0,105120.0,0.35879727]
[1750328260189,1.28291567,105130.0,105120.0,0.35879727]
[1750328262446,1.28291567,105130.0,105120.0,0.36830993]
[1750328263843,1.28291567,105130.0,105120.0,0.3778225]
[1750328264074,0.71803857,105130.0,105120.0,0.5047008]
[1750328264274,0.70852736,105130.0,105120.0,0.5047008]
[1750328264649,0.71803866,105130.0,105120.0,0.5047008]
[1750328264875,0.71803857,105130.0,105120.0,0.5047008]
[1750328265300,0.72754987,105130.0,105120.0,0.5047008]
[1750328266163,0.73706135,105130.0,105120.0,0.5047008]
[1750328266877,0.72754987,105130.0,105120.0,0.5047008]
[1750328267216,0.73706135,105130.0,105120.0,0.5047008]
[1750328269350,0.75608478,105130.0,105120.0,0.5047008]
[1750328269569,0.75608469,105130.0,105120.0,0.5047008]
[1750328269783,0.3875373,105130.0,105120.0,0.5047008]
[1750328270000,0.74657293,105130.0,105120.0,0.5047008]
[1750328270768,0.75608469,105130.0,105120.0,0.5047008]
[1750328271320,0.7560846,105130.0,105120.0,0.5047008]
[1750328273008,0.75608524,105130.0,105120.0,0.5047008]
[1750328277404,0.75608515,105130.0,105120.0,0.5047008]
[1750328277807,0.7560857,105130.0,105120.0,0.5047008]
[1750328281870,0.75608616,105130.0,105120.0,0.5047008]
[1750328282095,0.94632726,105130.0,105120.0,0.48840098]
[1750328282320,1.29585122,105130.0,105120.0,0.48840053]
[1750328285935,1.29585122,105130.0,105120.0,0.77990053]
[1750328287017,0.93681559,105130.0,105120.0,0.77990053]
[1750328287699,0.93681559,105130.0,105120.0,0.77990008]
[1750328288118,0.93681559,105130.0,105120.0,0.77038778]
[1750328289021,0.72755097,105130.0,105120.0,0.77990008]
[1750328289239,0.7275506,105130.0,105120.0,0.77990008]
[1750328290638,0.37802609,105130.0,105120.0,0.77990008]
[1750328290844,0.73706172,105130.0,105120.0,0.77990008]
[1750328291279,0.70852736,105130.0,105120.0,0.79640008]
[1750328291494,0.71803866,105130.0,105120.0,0.79640008]
[1750328291707,0.71803857,105130.0,105120.0,0.79640008]
[1750328292148,0.70852736,105130.0,105120.0,0.79640008]
[1750328292364,0.71803875,105130.0,105120.0,0.79640008]
[1750328294252,0.71803866,105130.0,105120.0,0.79640008]
[1750328295916,0.72755014,105130.0,105120.0,0.79640008]
[1750328296800,0.71803866,105130.0,105120.0,0.79640008]
[1750328297540,0.72755014,105130.0,105120.0,0.79640008]
[1750328297744,0.72755014,105130.0,105120.0,0.77990008]
[1750328297952,0.73706172,105130.0,105120.0,0.77990008]
[1750328298826,0.71803866,105130.0,105120.0,0.77990008]
[1750328299247,0.72755005,105130.0,105120.0,0.77990008]
[1750328300039,0.71803866,105130.0,105120.0,0.77990008]
[1750328300455,0.71803857,105130.0,105120.0,0.77990008]
[1750328300717,0.72754996,105130.0,105120.0,0.77990008]
[1750328301299,0.71803857,105130.0,105120.0,0.77990008]
[1750328303787,0.70852736,105130.0,105120.0,0.77990008]
[1750328304002,0.70852736,105130.0,105120.0,0.80984093]
[1750328304881,0.34949173,105130.0,105120.0,0.80984093]
[1750328305092,0.70852736,105130.0,105120.0,0.80984093]
[1750328307980,0.34949173,105130.0,105120.0,0.80984093]
[1750328308192,0.70852736,105130.0,105120.0,0.80984093]
[1750328309241,0.34949173,105130.0,105120.0,0.80984093]
[1750328309454,0.34949173,105130.0,105120.0,0.81284093]
[1750328309455,0.70852736,105130.0,105120.0,0.81284093]
[1750328313884,0.70852736,105130.0,105120.0,0.78214093]
[1750328314325,0.71803857,105130.0,105120.0,0.78214093]
[1750328314548,1.09609708,105130.0,105120.0,0.76760008]
[1750328314742,1.12150865,105130.0,105120.0,0.76760008]
[1750328314990,1.13720865,105130.0,105120.0,0.76760008]
[1750328315226,1.33696115,105130.0,105120.0,0.73906291]
[1750328315471,1.31793919,105130.0,105120.0,0.44756327]
[1750328315685,1.30842752,105130.0,105120.0,0.143]
[1750328316366,1.30842752,105130.0,105120.0,0.141]
[1750328317468,1.30842752,105130.0,105120.0,0.14]
[1750328318577,1.30842752,105130.0,105120.0,0.14951293]
[1750328319284,1.30842752,105130.0,105120.0,0.14]
[1750328321373,1.30842752,105130.0,105120.0,0.14951293]
[1750328323241,1.30842752,105130.0,105120.0,0.14]
[1750328329974,1.762733,105130.0,105120.0,0.14]
[1750328330413,1.79132,105130.0,105120.0,0.14]
[1750328330823,1.79132,105130.0,105120.0,0.06125251]
[1750328331027,6.84132,105130.0,105120.0,0.04760749]
[1750328331285,6.86412668,105130.0,105120.0,0.03060012]
[1750328331478,0.35902831,105100.0,105090.0,0.68082774]
[1750328331684,1.07709957,105100.0,105090.0,0.72610667]
[1750328331883,1.08661413,105100.0,105090.0,0.73562168]
[1750328332333,1.28642355,105100.0,105090.0,0.51677893]
[1750328332553,1.28642355,105100.0,105090.0,0.71660746]
[1750328332554,1.66704561,105100.0,105090.0,0.71660746]
[1750328332983,1.30800998,105100.0,105090.0,0.72060746]
[1750328333196,1.30800998,105100.0,105090.0,0.42910746]
[1750328333879,1.30800998,105100.0,105090.0,0.44162284]
[1750328334397,1.30800998,105100.0,105090.0,0.45113804]
[1750328334611,1.29240998,105100.0,105090.0,0.43862284]
[1750328334827,1.29240998,105100.0,105090.0,0.44813813]
[1750328335042,1.29240998,105100.0,105090.0,0.44413813]
[1750328335469,1.29240998,105100.0,105090.0,0.45365333]
[1750328335688,1.38767983,105100.0,105090.0,0.45365333]
[1750328336121,1.65713114,105100.0,105090.0,0.41559199]
[1750328336332,1.64761658,105100.0,105090.0,0.22527893]
[1750328336778,1.64761658,105100.0,105090.0,0.42510764]
[1750328337001,1.64761658,105100.0,105090.0,0.4346232]
[1750328338352,1.28858095,105100.0,105090.0,0.4346232]
[1750328338569,1.3838508,105100.0,105090.0,0.13951565]
[1750328339019,0.66577954,105100.0,105090.0,0.13951565]
[1750328339250,1.3838508,105100.0,105090.0,0.33934418]
[1750328340935,1.3686508,105100.0,105090.0,0.33934418]
[1750328341391,1.3686508,105100.0,105090.0,0.34885956]
[1750328341621,0.400991,105110.0,105100.0,0.21883836]
[1750328341879,0.400991,105110.0,105100.0,0.4536314]
[1750328341880,0.34,105110.0,105100.0,0.4536314]
[1750328342118,0.69903563,105110.0,105100.0,0.4851314]
[1750328342362,0.35903563,105110.0,105100.0,0.49967225]
[1750328342866,0.70003563,105110.0,105100.0,0.49967225]
[1750328343159,0.69903563,105110.0,105100.0,0.49967225]
[1750328344036,0.34,105110.0,105100.0,0.49967225]
[1750328344282,0.69903563,105110.0,105100.0,0.49967225]
[1750328344483,0.69903563,105110.0,105100.0,0.50167225]
[1750328344727,0.69903563,105110.0,105100.0,0.50267225]
[1750328344991,0.34,105110.0,105100.0,0.50267225]
[1750328346582,0.69872841,105110.0,105100.0,0.50267225]
[1750328347037,0.69872841,105110.0,105100.0,0.48727225]
[1750328347474,0.69872841,105110.0,105100.0,0.50347225]
[1750328348121,0.69872841,105110.0,105100.0,0.79497225]
[1750328348607,0.70824143,105110.0,105100.0,0.79497225]
[1750328348844,0.71775454,105110.0,105100.0,0.79497225]
[1750328349087,0.70824143,105110.0,105100.0,0.79497225]
[1750328349313,0.72726829,105110.0,105100.0,0.79497225]
[1750328349962,0.73678213,105110.0,105100.0,0.79497225]
[1750328350204,0.91754596,105110.0,105100.0,0.77594394]
[1750328350444,0.91754596,105110.0,105100.0,0.78545832]
[1750328350894,0.91754596,105110.0,105100.0,0.79497261]
[1750328351115,0.91754596,105110.0,105100.0,0.80448681]
[1750328351966,0.91754596,105110.0,105100.0,0.79497261]
[1750328352430,0.91754596,105110.0,105100.0,0.80448681]
[1750328352844,0.91754596,105110.0,105100.0,0.79497261]
[1750328353733,0.90803267,105110.0,105100.0,0.75974394]
[1750328353949,0.9148191,105110.0,105100.0,0.22827893]
[1750328354176,0.9314191,105110.0,105100.0,0.133]
[1750328354616,0.9314191,105110.0,105100.0,0.132]
[1750328354831,0.9314191,105110.0,105100.0,0.13]
[1750328355264,0.9148191,105110.0,105100.0,0.13]
[1750328358953,1.01008895,105110.0,105100.0,0.13]
[1750328359165,1.02558895,105110.0,105100.0,0.13]
[1750328362061,1.38431736,105110.0,105100.0,0.13]
[1750328362481,1.02558895,105110.0,105100.0,0.13]
[1750328363319,1.38431736,105110.0,105100.0,0.13]
[1750328364178,1.40812239,105110.0,105100.0,0.13]
[1750328364390,1.38531736,105110.0,105100.0,0.13]
[1750328364605,1.43671304,105110.0,105100.0,0.13]
[1750328365821,1.07798463,105110.0,105100.0,0.13]
[1750328366067,6.48671304,105110.0,105100.0,0.13]
[1750328366296,0.95900055,105090.0,105080.0,0.2915]